Cogmind - Beta 16 @@@ ROGUE MODE // 2025.11.13 @ 15:35:17 Player: Mozco Result: Smashed by cave-in Performance ------------- Evolutions (0) 0 Regions Visited (1) 200 Robots Destroyed (12) 60 Value Destroyed (248) 248 Prototype IDs (0) 0 Alien Tech Used (0) 0 Bonus (0) 0 TOTAL SCORE: 508 Bonus ------- None Cogmind --------- Core Integrity 0/250 Matter 300/300 Energy 250/250 System Corruption 2% Temperature Cool (0) Movement Walking (190) Ox1 Location -10/Materials Parts ------- > --- POWER (1) -------- Ion Engine > --- PROPULSION (2) --- Aluminum Leg > --- UTILITY (2) ------ Small Storage Unit Sensor Array > --- WEAPON (2) ------- Hammer > --- INVENTORY (8) ---- Light Nuclear Core Peak State ------------ > --- POWER ------------ Ion Engine > --- PROPULSION ------- Aluminum Leg Aluminum Leg > --- UTILITY ---------- Improved Heat Sink Small Storage Unit > --- WEAPON ----------- Hammer > --- INVENTORY -------- Light Ion Engine Light Nuclear Core [Rating: 8] Favorites ----------- Power Ion Engine Engine Ion Engine Propulsion Aluminum Leg Leg Aluminum Leg Utility Small Storage Unit Device Sensor Array Storage Small Storage Unit Weapon Hammer Impact Weapon Hammer Build | -11 -10 ------- Run | Yrd Mat Slots Evolved . | . . Power . | . . Propulsion . | . . Utility . | . . Weapon . | . . Parts Attached 12 | 2 10 Power 3 | . 3 Engine 3 | . 3 Core . | . . Reactor . | . . Propulsion 3 | 2 1 Treads . | . . Leg 3 | 2 1 Wheel . | . . Hover . | . . Flight . | . . Utility 5 | . 5 Device 3 | . 3 Storage 2 | . 2 Processor . | . . Hackware . | . . Protection . | . . Artifact . | . . Weapon 1 | . 1 Energy Gun . | . . Energy Cannon . | . . Ballistic Gun . | . . Ballistic Cannon . | . . Launcher . | . . Special Weapon . | . . Impact Weapon 1 | . 1 Slashing Weapon . | . . Piercing Weapon . | . . Special Melee Weapon . | . . Unidentified Prototypes . | . . Parts Lost 5 | . 5 Power 2 | . 2 Propulsion 2 | . 2 Utility 1 | . 1 Weapon . | . . Highest Loss Streak 3 | . 3 To Critical Strikes . | . . Average Backups 1 | 3 1 Power 1 | 1 1 Propulsion . | 1 . Utility . | . . Weapon . | . . Tool/Special . | . . Unused Backups 1 | . 1 Power 1 | . 1 Propulsion . | . . Utility . | . . Weapon . | . . Tool/Special . | . . Average Slot Usage (%) 72 | . 72 Engine 13 | . 13 Leg 21 | . 21 Device 10 | . 10 Storage 13 | . 13 Impact Weapon 13 | . 13 Peak Build Rating 8 | 2 8 Average Rating 4 | . 5 On Entrance . | . . Avg Prop Armor Cover (%) . | . . Naked Turns 14 | . 14 Heaviest Build 13 | . 13 Greatest Support 20 | 10 20 Greatest Overweight (x) 1 | . 1 Average Overweight (x) . | . . Largest Inventory Capacity 8 | 5 8 Average Capacity 7 | 5 7 Most Carried 5 | 5 5 Average Carried 1 | 2 1 Final Capacity 8 | 5 8 Final Carried 5 | 5 1 Class Distribution -------------------- 100% | Mutant Dominant Class ---------------- Mutant | -10/Materials Resources | -11 -10 ----------- Run | Yrd Mat Matter Collected 340 | 220 120 Remotely . | . . Salvage Created 293 | . 293 Parts 9 | . 9 Haulers Intercepted . | . . Recyclers Shooed . | . . Parts Field Recycled . | . . Retrieved Matter . | . . Parts Self-Destructed . | . . Prevented . | . . Parts Restored . | . . Kills | -11 -10 ------- Run | Yrd Mat Combat Hostiles Destroyed 7 | . 7 Melee 6 | . 6 Classes Destroyed 6 | . 6 Builder 2 | . 2 Tunneler 1 | . 1 Mechanic 1 | . 1 Operator 1 | . 1 Swarmer 3 | . 3 Grunt 4 | . 4 Best Kill Streak 2 | . 2 Combat Bots Only 2 | . 2 Max Kills in Single Turn 1 | . 1 Gunslinging . | . . Exploded . | . . Melee 1 | . 1 Uniques/NPCs Destroyed . | . . Combat | -11 -10 -------- Run | Yrd Mat Hostile Shots Fired 78 | . 78 Missed 18 | . 18 Hits 60 | . 60 Projectile 60 | . 60 Critical Strikes 1 | . 1 Damage Taken 729 | . 729 Core 259 | . 259 Absorbed by Shields . | . . Core Remaining (%) 100 | 100 . Volleys Fired . | . . Largest . | . . Hottest . | . . Shots Fired . | . . Gun . | . . Cannon . | . . Launcher . | . . Special . | . . Kinetic . | . . Thermal . | . . Explosive . | . . Electromagnetic . | . . Robot Hit Streak . | . . Robot Miss Streak . | . . Penetration Max . | . . Secondary Targets . | . . Shots Hit Robots 32 | . 32 Core Hits 5 | . 5 Critical Kills 2 | . 2 Critical Parts Destroyed 1 | . 1 Critical Strikes 3 | . 3 Smash 3 | . 3 Melee Attacks 55 | . 55 Impact 55 | . 55 Slashing . | . . Piercing . | . . Sneak Attacks 5 | . 5 Combat Hostiles . | . . Follow-up Attacks . | . . Damage Inflicted 975 | . 975 Guns . | . . Cannons . | . . Explosions . | . . Melee 975 | . 975 Ramming . | . . Kinetic . | . . Thermal . | . . Explosive . | . . Electromagnetic . | . . Impact 975 | . 975 Slashing . | . . Piercing . | . . Highest Corruption 2 | . 2 Average Corruption 2 | . 2 Corruption Purged . | . . Corruption Blocked . | . . Effects 4 | . 4 Message Errors 3 | . 3 Energy Discharges 1 | . 1 Overload Shots . | . . Overflow Damage 205 | . 205 Projectiles . | . . Explosions . | . . Melee 205 | . 205 Knockbacks 3 | . 3 Impact 3 | . 3 Kinetic . | . . Secondary . | . . Self-Inflicted Damage . | . . Shots . | . . Rammed . | . . Targets Rammed . | . . Kicked . | . . Crushed . | . . Highest Temperature 7 | . 7 Average Temperature 7 | . 7 Received Heat Transfer 273 | . 273 Siege Activations . | . . Martial Activations . | . . Shielding Activations . | . . Robots Disrupted . | . . Combat Hostiles . | . . Robots Corrupted 5 | . 5 Combat Hostiles 1 | . 1 Parts Fried 11 | . 11 Impact Corruptions 11 | . 11 Robots Melted . | . . Combat Hostiles . | . . Parts Melted . | . . Heat Transferred . | . . Parts Sabotaged . | . . Parts Stolen . | . . Parts Stripped . | . . Power Chain Reactions . | . . Alert | -11 -10 ------- Run | Yrd Mat Maximum Alert Level . | . . Low Security (%) 100 | 100 100 Level 1 . | . . Level 2 . | . . Level 3 . | . . Level 4 . | . . Level 5 . | . . High Security . | . . Max Security . | . . Peak Influence 70 | . 70 Initial . | . . Average 26 | . 28 Influence Increases 268 | . 268 Destroy 0b10 Robot/C 140 | . 140 Destroy 0b10 Robot/NC 25 | . 25 Destroy Leader 30 | . 30 Successful Hack 9 | . 9 Disable Machine 15 | . 15 Destroy Structure 4 | . 4 Lose Combat Pursuer 45 | . 45 Influence Decreases 263 | . 263 Time Decay 213 | . 213 Lost Part 50 | . 50 Squads Dispatched 1 | . 1 Investigation . | . . Extermination . | . . Reinforcement 1 | . 1 Assault . | . . Garrison . | . . Intercept . | . . Searches Triggered . | . . Construction Impeded . | . . Haulers Reinforced . | . . Active Scanning Responses . | . . Cargo Convoy Interrupts . | . . Stealth | -11 -10 --------- Run | Yrd Mat Distress Signals 1 | . 1 Communications Jammed . | . . Distress Signals . | . . Times Spotted 17 | . 17 Peak Tracking Total 4 | . 4 Tactical Retreats 2 | . 2 Traps | -11 -10 ------- Run | Yrd Mat Traps Triggered 3 | . 3 Indirectly . | . . Trap Hack Attempts . | . . Triggered . | . . Disarmed . | . . Reprogrammed . | . . Reused . | . . Traps Extracted . | . . Installed . | . . Triggered . | . . Machines | -11 -10 ---------- Run | Yrd Mat Machines Disabled 1 | . 1 Max in Single Turn 1 | . 1 Machines Repaired . | . . Machines Dismantled . | . . Machines Sabotaged . | . . Overloaded Fab Kills . | . . Hacking | -11 -10 --------- Run | Yrd Mat Machines Accessed 4 | . 4 Terminals 4 | . 4 Fabricators . | . . Repair Stations . | . . Recycling Units . | . . Scanalyzers . | . . Garrison Access . | . . Total Hacks 11 | . 11 Successful 5 | . 5 Failed 6 | . 6 Catastrophic . | . . Database Lockouts . | . . Manual 7 | . 7 Terminals 11 | . 11 Fabricators . | . . Repair Stations . | . . Recycling Units . | . . Scanalyzers . | . . Garrison Access . | . . Terminal Hacks 1 | . 1 Zone Layout 1 | . 1 Fabricator Hacks . | . . Repair Station Hacks . | . . Recycling Unit Hacks . | . . Scanalyzer . | . . Garrison Access Hacks . | . . Unauthorized Hacks 4 | . 4 Terminals 4 | . 4 Botnet 3 | . 3 Operators 1 | . 1 Fabricators . | . . Repair Stations . | . . Recycling Units . | . . Scanalyzers . | . . Garrison Access . | . . Data Cores Recovered . | . . Used . | . . Hacking Detections 4 | . 4 Full Trace Events . | . . Feedback Events . | . . Feedback Blocked . | . . Robot Schematics Acquired . | . . Robots Built . | . . Authchips . | . . Time . | . . Total Robot Build Rating . | . . Part Schematics Acquired . | . . Parts Built . | . . Authchips . | . . Time . | . . Total Part Build Rating . | . . Part Studies Acquired . | . . Parts Repaired . | . . Time . | . . Parts Recycled . | . . Recycled Matter . | . . Retrieved Matter . | . . Retrieved Components . | . . Parts Scanalyzed . | . . Part Schematics Acquired . | . . Parts Damaged . | . . Bothacking | -11 -10 ------------ Run | Yrd Mat Used RIF Installer . | . . Robots Hacked . | . . Non-combat . | . . Combat . | . . Robot Hacks Applied . | . . Relay Couplers Released . | . . Fabnet Peak Effective % . | . . Robots Rewired . | . . Allies Hacked . | . . Hacks Repelled . | . . Allies | -11 -10 -------- Run | Yrd Mat Total Allies . | . . Largest Group . | . . Highest-Rated Group . | . . Highest-Rated Ally . | . . Total Orders . | . . Ally Attacks . | . . Total Damage . | . . Kills . | . . Allies Corrupted . | . . Allies Melted . | . . Intel | -11 -10 ------- Run | Yrd Mat Active Infowar (turns) 413 | . 413 Sensors 413 | . 413 Robot Analysis Total . | . . Derelict Logs Recovered . | . . Drone Launches . | . . Drone Recoveries . | . . Exploration | -11 -10 ------------- Run | Yrd Mat Turns Passed 607 | 33 574 Spaces Moved 346 | 47 299 Core 84 | 44 40 Treads . | . . Legs 262 | 3 259 Wheels . | . . Hover . | . . Flight . | . . Fastest Speed 50 | 50 50 Average Speed 111 | 54 120 Slowest Speed 190 | 120 190 Overloaded Moves . | . . Propulsion Burnouts . | . . Robots Hopped . | . . Potential Cave-ins . | . . Cave-ins Triggered 1 | . 1 Exploration Rate (%) 25 | 3 48 Regions Visited 1 Branch Regions . Pre-discovered Areas . | . . Known Exits Taken . | . . Unknown Exits Taken 1 | 1 . Scrap Searched . | . . Spaces Dug 3 | . 3 Terrain Destroyed 3 | . 3 Melee 3 | . 3 Projectile . | . . AOE . | . . Terrain Rammed . | . . Walls Destroyed . | . . Machines Disabled . | . . Actions | -11 -10 --------- Run | Yrd Mat Total 469 | 53 416 Wait 47 | . 47 Move 345 | 46 299 Hop . | . . Pick Up 5 | 3 2 Fast Attach 7 | 2 5 Attach 6 | . 6 Detach 2 | 2 . Swap 1 | . 1 Drop 1 | . 1 Fire . | . . Melee 55 | . 55 Ram . | . . Kick . | . . Crush . | . . Escape Stasis . | . . Rewire . | . . Trap . | . . Miscellaneous . | . . Route ------- -11/Scrapyard -10/Materials History --------- Turn | Location | Event 3 | -11/Scrapyard | Discovered new exit (range 16) 34 | -11/Scrapyard | Entered Materials 236 | -10/Materials | Core integrity fell below 50% 258 | -10/Materials | Lost 3 parts (1p1n1u) 323 | -10/Materials | Build established: Mutant 467 | -10/Materials | Core integrity fell below 20% 609 | -10/Materials | Crushed by falling debris 609 | -10/Materials | Smashed by cave-in Last Messages --------------- M001. 00438_ S-10 Pest destroyed. 00440_ K-01 Serf collects debris. 00446_ Aluminum Leg destroyed. 00452_ Destroyed Flight Unit. 00452_ S-10 Pest system corrupted by crushing effect. 00453_ K-01 Serf cleans the Terminal. 00458_ Lgt. Ion Engine fried. 00458_ S-10 Pest destroyed. 00463_ R-06 Scavenger collects Flight Unit. 00465_ Lgt. Ion Engine destroyed. 00469_ Acquired 10 matter. 00489_ S-10 Pest suffers critical hit (Smash). 00489_ Destroyed Lgt. Ion Engine. 00489_ S-10 Pest system corrupted by crushing effect. 00489_ S-10 Pest destroyed. 00516_ N>TKD9B15DJCQ EHVISCA/M 00556_ U-05 Engineer builds a Wall. 00609_ The unstable cave ceiling collapses. 00609_ Crushed by falling debris. Map ----- +----------------------------------------------------+ | # """"" + ?????????????????????????????????? | | # """"" # #????????????????????????????????? | | # """"" # #????????????????????????????????? | | # """ # #??????????o?????????????????????? | | # # #????????????????????????????????? | | # # #????????????????????????????????? | | ############# #????????????????????????????????? | | ########???## ##???????????????????????????????? | | ## ##### ! #######?????????????????????????? | | ## ! ???? ????????????????????? | | T " ??? ??????????????????? | | ## ! ?? ?????????????????? | | ?# ##### ?# ?????????????????? | | ### ########+#### =! "?????????????????? | | # #?# # "T" =! "?????????????????? | | " # #?# # """ =! """???????????????? | | " + #?# # ????????????????? | | " # #?# # ???????????????? | | ## ##?# # #?????????????????? | | " ## #??# """"" # #?????????????????? | | " ## #??# """"" # #?????????????????? | | " ## #??# """"" + #?????????????????? | | ## ###############+###### #?????????????????? | | #### #??????# % % #??? #?????????????????? | | ???# #??????# u## #?????????????????? | | ???# ######## """ """u@; #?????????????????? | | ???# %+ """ """ ## #?????????????????? | | ???############# """ """ #??? ??????????????? | | ???????????????# """ """ #?????#####?????????????? | | ???????????????# """ """ #???????????????????????? | | ???????????????# #???????????????????????? | | ???????????????###########???????????????????????? | | | | | | | | | | | | | | | | | | | | | | | | | | | | | | | | | | | | | +----------------------------------------------------+ Best States ------------- Heat Dissipation 39 Energy Generation 10 Energy Capacity 250 Matter Stores 300 Matter Capacity 300 Sight Range 16 Robot Scan Range 14 Terrain Scan Density 10 Evasion (%) 55 Item Schematics ----------------- None Robot Schematics ------------------ None Fabricated ------------ Nothing Repaired ---------- Nothing Studied --------- None Alien Tech Used ----------------- None Achievements -------------- None Challenges ------------ None Game ------ Seed BlastPowerAmplifier Manual? 0 Play Time 00:09:13 Cumulative 264.7 hours Start 2025.11.13 @ 15:30:27 End 2025.11.13 @ 15:35:17 Sessions 1 Manual Loads 0 Difficulty Rogue Special Mode None Game No. 269 Rogue 265 Adventurer 3 Explorer 1 Win Type - Total 1 Types 1/0/0/0/0/0/0/0/0/0 Lore% 78 Gallery% 75 Achievement% 60 Wizard Run 0 Options --------- Layout 0 ASCII 0 Keyboard 0 Movement Mouse Keybinds 0 Fullscreen 2 Font 18/SmallcapsGlow Map View 76x50 Zoom Use 0% Tactical HUD 1 Map Filters NONE Filters NONE Steam 1 RUN: facd9097-01af-4c80-ae77-441427013fcf